fUSD/lending_fUSD_20240216
["ID","MTS","AMOUNT","RATE_DAILY","PERIOD"]
[314191177,1708055456243,-484.9240511,0.00041951,2]
[314191178,1708055456252,-151.776715,0.00041951,14]
[314191179,1708055456262,-174.222451,0.00041951,14]
[314191180,1708055456272,-150.0,0.00041963,2]
[314191181,1708055456283,-151.0,0.00041966,7]
[314191182,1708055456293,-1020.16216057,0.00041971,10]
[314191183,1708055456303,-1849.4787701,0.00041971,2]
[314191184,1708055456312,-1523.1162409,0.00041971,2]
[314191185,1708055456322,-1285.2458484,0.00041971,2]
[314191186,1708055456331,-64500.4289193,0.00041971,2]
[314191187,1708055456340,-424.6695509,0.00041971,2]
[314191188,1708055456351,-1164.85822244,0.00041971,2]
[314191189,1708055456361,-1500.0,0.00041979,2]
[314191190,1708055456371,-150.0,0.00041979,3]
[314191191,1708055456381,-150.0,0.00041979,3]
[314191192,1708055456390,-242119.11511309,0.0004198,2]
[314191193,1708055456405,-270.76225108,0.0004198,2]
[314191194,1708055456429,-5038.929478,0.0004198,2]
[314191195,1708055456442,-2621.76001,0.0004198,2]
[314191196,1708055456453,-712.525,0.0004198,2]
[314191197,1708055456465,-703.7800001,0.0004198,2]
[314191198,1708055456476,-3589.61915334,0.0004198,2]
[314191199,1708055456487,-3265.71254308,0.0004198,2]
[314191200,1708055456499,-755.41622093,0.0004198,2]
[314191201,1708055456510,-40548.10055742,0.0004198,2]
[314191202,1708055456521,-533.0,0.0004198,2]
[314191203,1708055456535,-22954.73206285,0.0004198,2]
[314191204,1708055456551,-256.81548211,0.0004198,2]
[314191205,1708055456563,-500.0,0.0004198,2]
[314191206,1708055456581,-362.77533196,0.0003926,2]
[314191207,1708055456670,1271.7716,0.00034978,2]
[314191208,1708055456697,-873.88559492,0.00038256,3]
[314191209,1708055456708,-4126.11440508,0.00038256,3]
[314191210,1708055456718,-137.21466804,0.0003926,2]
[314191211,1708055456727,-18379.29252304,0.0004198,2]
[314191212,1708055456738,-444.1546217,0.0004198,2]
[314191213,1708055456749,-8042.33814042,0.0004198,2]
[314191214,1708055456763,-802.3847297,0.0004198,2]
[314191215,1708055456775,-500.0,0.0004198,2]
[314191216,1708055456788,-10338.88057281,0.0004198,2]
[314191217,1708055456811,-3568.01435,0.0004198,2]
[314191218,1708055456864,-1306.825,0.0004198,2]
[314191219,1708055456918,-388.37127809,0.0004198,2]
[314191220,1708055457207,155.0,0.00034779,4]
[314191221,1708055457239,-328.29726274,0.0004198,2]
[314191222,1708055457253,-966.16924044,0.0004198,2]
[314191223,1708055468901,155.0,0.00034779,4]
[314191224,1708055470113,325935.7696233,0.00023,2]
[314191225,1708055470923,217.80414265,0.0002509,2]
[314191226,1708055553852,207.0,0.00034592,2]
[314191228,1708055621648,299.51737992,0.000301,2]
[314191229,1708055632779,37043.8762871,0.00023,2]
[314191231,1708055668424,826.61972608,0.0003,2]
[314191232,1708055668731,310.66210964,0.00031,2]
[314191234,1708055842297,175.0,0.00033788,2]
[314191236,1708055879810,2000.0,0.00033788,5]
[314191238,1708055905650,296.05357472,0.00033788,5]
[314191244,1708056369373,339.53,0.00034108,2]
[314191259,1708056631493,-165.0106296,0.00035086,10]
[314191260,1708056631503,-332.75739987,0.00035089,10]
[314191261,1708056631512,-156.83087122,0.00035578,5]
[314191262,1708056631525,-3415.11912878,0.00035578,5]
[314191263,1708056631534,-3658.73,0.00035645,5]
[314191264,1708056631543,-260.0,0.00035721,3]
[314191265,1708056631552,-3584.67,0.00035722,5]
[314191266,1708056631561,-3609.35,0.0003581,5]
[314191267,1708056631571,-186.6,0.00035881,2]
[314191268,1708056631580,-250.0,0.00035895,111]
[314191269,1708056631590,-3588.91,0.0003591,5]
[314191270,1708056631599,-194.3,0.00035974,2]
[314191271,1708056631608,-250.0,0.00035974,2]
[314191272,1708056631618,-155.0,0.00035982,4]
[314191273,1708056631627,-227.96,0.00036001,2]
[314191274,1708056631636,-3595.8,0.00036023,5]
[314191275,1708056631645,-2000.0,0.00036029,2]
[314191276,1708056631654,-250.0,0.00036123,2]
[314191277,1708056631664,-3656.29,0.00036151,5]
[314191278,1708056631673,-360.0,0.00036151,2]
[314191279,1708056631682,-155.15,0.00036185,2]
[314191280,1708056631691,-3688.32,0.00036294,5]
[314191281,1708056631701,-339.53,0.00036372,2]
[314191282,1708056631710,-3578.17,0.00036462,5]
[314191283,1708056631719,-3643.22,0.00036641,5]
[314191284,1708056631729,-1962.8,0.00036697,2]
[314191285,1708056631738,-163.16,0.00036787,2]
[314191286,1708056631748,-8497.83969371,0.00036845,2]
[314191287,1708056631757,-2347.87380565,0.00036855,5]
[314191288,1708056631769,-549.16779591,0.00036855,5]
[314191289,1708056631781,-350.0,0.00036855,5]
[314191290,1708056631792,-430.33839844,0.00036855,5]
[314191291,1708056631802,-177.38,0.000369,2]
[314191292,1708056631811,-2.7297434,0.00036948,2]
[314191293,1708056631823,-390.72,0.00036948,2]
[314191294,1708056631834,-644.81477819,0.00036948,2]
[314191295,1708056631846,-500.63970618,0.00036948,2]
[314191296,1708056631858,-377.55697819,0.00036948,2]
[314191297,1708056631869,-817.67329241,0.00036948,2]
[314191298,1708056631881,-11353.86550163,0.00036948,2]
[314191299,1708056631890,-3665.21,0.00037114,5]
[314191300,1708056631899,-880.57245732,0.00037213,4]
[314191301,1708056631908,-18648.63,0.00037214,2]
[314191302,1708056631918,-172.08,0.00037306,2]
[314191303,1708056631927,-167.0,0.00037308,7]
[314191304,1708056631936,-499.99,0.00037308,2]
[314191305,1708056631945,-640.0,0.0003739,2]
[314191306,1708056631954,-3591.65,0.00037422,5]
[314191307,1708056631964,-167.0,0.00037445,7]
[314191308,1708056631973,-177.38,0.00037448,2]
[314191309,1708056631983,-285.48466114,0.00037497,2]
[314191310,1708056631993,-800.73488914,0.00037498,2]
[314191311,1708056632002,-8201.69,0.00037578,10]
[314191312,1708056632012,-167.0,0.00037582,7]
[314191314,1708056632021,-591.36146051,0.00037588,8]
[314191316,1708056632031,-7868.01849586,0.00037598,2]
[314191318,1708056632043,-866.30438943,0.00037598,2]
[314191321,1708056632055,-450.25,0.00037598,2]
[314191322,1708056632067,-422.84951053,0.00037598,2]
[314191323,1708056632078,-2752.29226386,0.00037598,2]
[314191324,1708056632094,-2600.63941643,0.00037598,2]
[314191325,1708056632106,-865.25438575,0.00037598,2]
[314191326,1708056632117,-1768.42882103,0.00037598,2]
[314191327,1708056632134,-3540.59504822,0.00037598,2]
[314191328,1708056632145,-7842.05920225,0.00037598,2]
[314191329,1708056632157,-979.38,0.00037598,2]
[314191330,1708056632206,-991.339575,0.00037598,2]
[314191331,1708056632218,-6429.73131915,0.00037598,2]
[314191332,1708056632230,-842.26534996,0.00037598,2]
[314191334,1708056637482,-157.71374335,0.00035545,2]
[314191335,1708056637492,-206.0,0.00035826,2]
[314191336,1708056637501,-134.47374261,0.00037568,10]
[314191337,1708056637514,-5189.94117156,0.00037568,10]
[314191338,1708056637646,-1143.97691514,0.00037568,10]
[314191339,1708056637658,-366.34817069,0.00037568,10]
[314191340,1708056637668,-645.22754742,0.00037598,2]
[314191341,1708056637702,-375.9788879,0.00037598,2]
[314191342,1708056637714,-205759.38578721,0.00037598,2]
[314191343,1708056637723,-8364.0612,0.00037598,2]
[314191344,1708056637733,-43648.3993,0.00037598,2]
[314191345,1708056637742,-2495.14427472,0.000376,2]
[314191346,1708056637751,-400.06145351,0.00037695,2]
[314191347,1708056637760,-430791.29431167,0.00037698,2]
[314191348,1708056637769,-41116.33027507,0.000377,3]
[314191349,1708056637778,-167.0,0.00037719,7]
[314191350,1708056637788,-154.6833297,0.000378,2]
[314191351,1708056637797,-167.0,0.00037856,7]
[314191352,1708056637806,-11083.85862073,0.0003789,11]
[314191353,1708056637815,-199973.87960515,0.000379,3]
[314191354,1708056637825,-5000.0,0.000379,3]
[314191355,1708056637834,-389915.202307,0.000379,2]
[314191356,1708056637843,-400.06145351,0.00037958,2]
[314191357,1708056637853,-154.63,0.0003796,2]
[314191358,1708056637862,-77983.0404613,0.0003796,2]
[314191359,1708056637871,-352.91565674,0.0003797,2]
[314191361,1708056637880,-808.76051249,0.0003797,2]
[314191363,1708056637889,-2111.48700238,0.0003797,2]
[314191365,1708056637898,-2542.3308983,0.0003797,2]
[314191367,1708056637907,-77983.0404613,0.0003798,2]
[314191368,1708056637916,-114535.6417173,0.0003799,3]
[314191369,1708056637926,-77983.0404613,0.0003799,2]
[314191370,1708056637935,-167.0,0.00037993,7]
[314191371,1708056637944,-177.38,0.00037996,2]
[314191372,1708056637954,-890.59576184,0.00038,10]
[314191373,1708056637963,-94908.83830244,0.00038,2]
[314191374,1708056637973,-156459.87029046,0.00038,2]
[314191375,1708056637982,-170.35810011,0.00038,2]
[314191376,1708056637991,-155.15,0.0003807,2]
[314191377,1708056638000,-502.76880153,0.000381,2]
[314191378,1708056638010,-167.0,0.0003813,7]
[314191379,1708056638020,-167.0,0.00038267,7]
[314191380,1708056638031,-800.7348891,0.00038337,2]
[314191381,1708056638041,-500.0,0.00038356,7]
[314191382,1708056638051,-500.0,0.00038356,7]
[314191383,1708056638061,-494.8193932,0.00038356,7]
[314191384,1708056638071,-502.96829363,0.00038356,7]
[314191385,1708056638081,-1309.93,0.00038356,7]
[314191386,1708056638092,-518.05154675,0.00038356,7]
[314191387,1708056638104,-500.0,0.00038356,7]
[314191388,1708056638113,-500.0,0.00038356,7]
[314191389,1708056638124,-500.0,0.00038356,7]
[314191390,1708056638134,-500.0,0.00038356,7]
[314191391,1708056638144,-572.19940751,0.00038356,7]
[314191392,1708056638153,-500.0,0.00038356,7]
[314191393,1708056638164,-1066.52,0.00038356,7]
[314191394,1708056638176,-500.0,0.00038356,7]
[314191395,1708056638188,-500.0,0.00038356,7]
[314191396,1708056638200,-500.0,0.00038356,7]
[314191397,1708056638212,-281.37478869,0.00038356,7]
[314191398,1708056638224,-500.0,0.00038356,7]
[314191399,1708056638235,-500.0,0.00038356,7]
[314191400,1708056638247,-500.0,0.00038356,7]
[314191401,1708056638257,-539.97842346,0.00038356,7]
[314191402,1708056638268,-518.71,0.00038356,7]
[314191403,1708056638278,-500.0,0.00038356,7]
[314191404,1708056638289,-500.0,0.00038356,7]
[314191405,1708056638300,-500.0,0.00038356,7]
[314191406,1708056638311,-500.0,0.00038356,7]
[314191407,1708056638323,-500.0,0.00038356,7]
[314191408,1708056638335,-336.38,0.00038356,7]
[314191409,1708056638346,-500.0,0.00038356,7]
[314191410,1708056638358,-523.13,0.00038356,7]
[314191411,1708056638370,-812.87,0.00038356,7]
[314191412,1708056638380,-500.0,0.00038356,7]
[314191413,1708056638391,-4810.13,0.00038356,7]
[314191414,1708056638403,-500.0,0.00038356,7]
[314191415,1708056638414,-500.0,0.00038356,7]
[314191416,1708056638424,-500.0,0.00038356,7]
[314191417,1708056638433,-500.0,0.00038356,7]
[314191418,1708056638444,-905.0,0.00038356,7]
[314191419,1708056638455,-3865.85,0.00038356,7]
[314191420,1708056638466,-500.0,0.00038356,7]
[314191421,1708056638476,-500.0,0.00038356,7]
[314191422,1708056638486,-500.0,0.00038356,7]
[314191423,1708056638497,-500.0,0.00038356,7]
[314191424,1708056638508,-500.0,0.00038356,7]
[314191425,1708056638518,-500.0,0.00038356,7]
[314191426,1708056638529,-500.0,0.00038356,7]
[314191427,1708056638539,-500.0,0.00038356,7]
[314191428,1708056638550,-735.17,0.00038356,7]
[314191429,1708056638561,-500.0,0.00038356,7]
[314191430,1708056638572,-301.15506653,0.00038356,7]
[314191431,1708056638583,-500.0,0.00038356,7]
[314191432,1708056638593,-500.0,0.00038356,7]
[314191433,1708056638603,-500.0,0.00038356,2]
[314191434,1708056638613,-1790.65,0.00038356,15]
[314191435,1708056638626,-155.04,0.00038356,2]
[314191436,1708056638639,-167.0,0.00038404,7]
[314191437,1708056638650,-1588.27951448,0.00038407,3]
[314191438,1708056638660,-4671.75382789,0.00038407,5]
[314191439,1708056638672,-155.75927386,0.00038418,2]
[314191440,1708056638685,-500.0,0.00038475,2]
[314191441,1708056638697,-11083.85862073,0.00038491,12]
[314191442,1708056638708,-167.0,0.00038541,7]
[314191443,1708056638720,-177.38,0.00038544,2]
[314191444,1708056638730,-591.36146048,0.00038575,9]
[314191445,1708056638741,-500.0,0.00038594,2]
[314191446,1708056638753,-155.0,0.000386,2]
[314191447,1708056638763,-322.52,0.000386,2]
[314191448,1708056638775,-186.6,0.00038621,2]
[314191449,1708056638786,-163.16,0.00038627,2]
[314191450,1708056638797,-504.33897023,0.0003863,7]
[314191451,1708056638808,-1309.93,0.0003863,7]
[314191452,1708056638821,-217.14824301,0.0003863,7]
[314191453,1708056638834,-500.0,0.0003863,7]
[314191454,1708056638847,-500.0,0.0003863,7]
[314191455,1708056638859,-500.0,0.0003863,7]
[314191456,1708056638870,-1066.52,0.0003863,7]
[314191457,1708056638882,-500.0,0.0003863,7]
[314191458,1708056638893,-500.0,0.0003863,7]
[314191459,1708056638904,-500.0,0.0003863,7]
[314191460,1708056638914,-500.0,0.0003863,7]
[314191461,1708056638926,-500.0,0.0003863,7]
[314191462,1708056638936,-488.44659545,0.0003863,7]
[314191463,1708056638947,-518.71,0.0003863,7]
[314191464,1708056638957,-500.0,0.0003863,7]
[314191465,1708056638967,-500.0,0.0003863,7]
[314191466,1708056638977,-500.0,0.0003863,7]
[314191467,1708056638989,-500.0,0.0003863,7]
[314191468,1708056639000,-500.0,0.0003863,7]
[314191469,1708056639011,-523.13,0.0003863,7]
[314191470,1708056639022,-812.87,0.0003863,7]
[314191471,1708056639032,-500.0,0.0003863,7]
[314191472,1708056639045,-4810.13,0.0003863,7]
[314191473,1708056639056,-500.0,0.0003863,7]
[314191474,1708056639067,-594.54,0.0003863,7]
[314191475,1708056639078,-500.0,0.0003863,7]
[314191476,1708056639088,-500.0,0.0003863,7]
[314191477,1708056639100,-905.0,0.0003863,7]
[314191478,1708056639112,-3865.85,0.0003863,7]
[314191479,1708056639123,-500.0,0.0003863,7]
[314191480,1708056639133,-500.0,0.0003863,7]
[314191481,1708056639144,-500.0,0.0003863,7]
[314191482,1708056639157,-500.0,0.0003863,7]
[314191483,1708056639168,-500.0,0.0003863,7]
[314191484,1708056639179,-500.0,0.0003863,7]
[314191485,1708056639189,-500.0,0.0003863,7]
[314191486,1708056639199,-500.0,0.0003863,7]
[314191487,1708056639210,-735.17,0.0003863,7]
[314191488,1708056639220,-500.0,0.0003863,7]
[314191489,1708056639230,-500.0,0.0003863,7]
[314191490,1708056639242,-500.0,0.0003863,7]
[314191491,1708056639252,-339.53,0.00038636,2]
[314191492,1708056639262,-167.0,0.00038678,7]
[314191493,1708056639274,-500.0,0.00038714,2]
[314191494,1708056639284,-1187.16853599,0.00038765,2]
[314191495,1708056639294,-400.06145351,0.00038797,2]
[314191496,1708056639306,-500000.0,0.000388,14]
[314191497,1708056639316,-167.0,0.00038815,7]
[314191498,1708056639326,-500.0,0.00038833,2]
[314191499,1708056639337,-1309.93,0.00038904,7]
[314191501,1708056639347,-500.0,0.00038904,7]
[314191502,1708056639358,-500.0,0.00038904,7]
[314191503,1708056639370,-500.0,0.00038904,7]
[314191504,1708056639380,-1066.52,0.00038904,7]
[314191505,1708056639390,-500.0,0.00038904,7]
[314191506,1708056639401,-500.0,0.00038904,7]
[314191507,1708056639411,-500.0,0.00038904,7]
[314191508,1708056639421,-500.0,0.00038904,7]
[314191509,1708056639432,-500.0,0.00038904,7]
[314191510,1708056639443,-518.71,0.00038904,7]
[314191511,1708056639454,-500.0,0.00038904,7]
[314191512,1708056639465,-500.0,0.00038904,7]
[314191513,1708056639475,-500.0,0.00038904,7]
[314191514,1708056639487,-382.77845556,0.00038904,7]
[314191515,1708056639497,-500.0,0.00038904,7]
[314191516,1708056639508,-523.13,0.00038904,7]
[314191517,1708056639519,-812.87,0.00038904,7]
[314191518,1708056639531,-500.0,0.00038904,7]
[314191519,1708056639542,-4810.13,0.00038904,7]
[314191520,1708056639555,-500.0,0.00038904,7]
[314191521,1708056639565,-500.0,0.00038904,7]
[314191522,1708056639576,-500.0,0.00038904,7]
[314191523,1708056639588,-905.0,0.00038904,7]
[314191524,1708056639598,-3865.85,0.00038904,7]
[314191525,1708056639608,-500.0,0.00038904,7]
[314191526,1708056639619,-236.58635085,0.00038904,7]
[314191527,1708056639629,-500.0,0.00038904,7]
[314191528,1708056639640,-500.0,0.00038904,7]
[314191529,1708056639650,-500.0,0.00038904,7]
[314191530,1708056639660,-485.59218882,0.00038904,7]
[314191531,1708056639671,-500.0,0.00038904,7]
[314191532,1708056639681,-188.14385199,0.00038904,7]
[314191533,1708056639691,-735.17,0.00038904,7]
[314191534,1708056639701,-500.0,0.00038904,7]
[314191535,1708056639711,-500.0,0.00038904,7]
[314191536,1708056639722,-500.0,0.00038904,7]
[314191537,1708056639732,-500.0,0.00038952,2]
[314191538,1708056639742,-167.0,0.00038952,7]
[314191539,1708056639752,-500.0,0.00039071,2]
[314191540,1708056639763,-167.0,0.00039089,7]
[314191541,1708056639774,-11083.85862073,0.00039092,12]
[314191542,1708056639784,-187.15347713,0.00039092,2]
[314191543,1708056639794,-800.7348891,0.00039176,2]
[314191544,1708056639805,-1309.93,0.00039178,7]
[314191545,1708056639815,-500.0,0.00039178,7]
[314191546,1708056639826,-500.0,0.00039178,7]
[314191547,1708056639836,-500.0,0.00039178,7]
[314191548,1708056639846,-1066.52,0.00039178,7]
[314191549,1708056639857,-500.0,0.00039178,7]
[314191550,1708056639869,-500.0,0.00039178,7]
[314191551,1708056639879,-500.0,0.00039178,7]
[314191552,1708056639890,-500.0,0.00039178,7]
[314191553,1708056639901,-500.0,0.00039178,7]
[314191554,1708056639912,-518.71,0.00039178,7]
[314191555,1708056639922,-500.0,0.00039178,7]
[314191556,1708056639933,-500.0,0.00039178,7]
[314191557,1708056639944,-500.0,0.00039178,7]
[314191558,1708056639954,-500.0,0.00039178,7]
[314191559,1708056639965,-523.13,0.00039178,7]
[314191560,1708056639976,-812.87,0.00039178,7]
[314191561,1708056639987,-500.0,0.00039178,7]
[314191564,1708056639998,-4810.13,0.00039178,7]
[314191566,1708056640009,-500.0,0.00039178,7]
[314191568,1708056640021,-500.0,0.00039178,7]
[314191570,1708056640032,-500.0,0.00039178,7]
[314191572,1708056640227,-905.0,0.00039178,7]
[314191573,1708056640240,-3865.85,0.00039178,7]
[314191574,1708056640249,-500.0,0.00039178,7]
[314191575,1708056640258,-500.0,0.00039178,7]
[314191576,1708056640267,-500.0,0.00039178,7]
[314191577,1708056640277,-500.0,0.00039178,7]
[314191578,1708056640287,-500.0,0.00039178,7]
[314191579,1708056640296,-735.17,0.00039178,7]
[314191580,1708056640305,-500.0,0.00039178,7]
[314191581,1708056640314,-500.0,0.00039178,7]
[314191582,1708056640324,-500.0,0.00039178,7]
[314191583,1708056640333,-2495.14427461,0.00039179,2]
[314191584,1708056640342,-500.0,0.0003919,2]
[314191585,1708056640351,-167.0,0.00039226,7]
[314191586,1708056640360,-171.01,0.0003926,2]
[314191587,1708056640369,-500.0,0.00039309,2]
[314191588,1708056640378,-167.0,0.00039363,7]
[314191589,1708056640386,-500.0,0.00039428,2]
[314191590,1708056640396,-302.49781483,0.00039448,27]
[314191591,1708056640405,-500.0,0.00039451,10]
[314191592,1708056640414,-1309.93,0.00039452,7]
[314191593,1708056640423,-500.0,0.00039452,7]
[314191594,1708056640432,-500.0,0.00039452,7]
[314191595,1708056640441,-500.0,0.00039452,7]
[314191596,1708056640450,-1066.52,0.00039452,7]
[314191597,1708056640458,-500.0,0.00039452,7]
[314191598,1708056640467,-500.0,0.00039452,7]
[314191599,1708056640476,-500.0,0.00039452,7]
[314191600,1708056640485,-500.0,0.00039452,7]
[314191601,1708056640494,-500.0,0.00039452,7]
[314191602,1708056640503,-518.71,0.00039452,7]
[314191603,1708056640512,-500.0,0.00039452,7]
[314191604,1708056640522,-500.0,0.00039452,7]
[314191605,1708056640531,-500.0,0.00039452,7]
[314191606,1708056640540,-500.0,0.00039452,7]
[314191607,1708056640549,-523.13,0.00039452,7]
[314191608,1708056640559,-812.87,0.00039452,7]
[314191609,1708056640568,-500.0,0.00039452,7]
[314191610,1708056640577,-4810.13,0.00039452,7]
[314191611,1708056640586,-500.0,0.00039452,7]
[314191612,1708056640595,-500.0,0.00039452,7]
[314191613,1708056640605,-500.0,0.00039452,7]
[314191614,1708056640615,-905.0,0.00039452,7]
[314191615,1708056640625,-3865.85,0.00039452,7]
[314191616,1708056640634,-500.0,0.00039452,7]
[314191617,1708056640642,-339.49014069,0.00039452,7]
[314191618,1708056640652,-500.0,0.00039452,7]
[314191619,1708056640661,-500.0,0.00039452,7]
[314191620,1708056640670,-500.0,0.00039452,7]
[314191621,1708056640679,-735.17,0.00039452,7]
[314191622,1708056640688,-500.0,0.00039452,7]
[314191623,1708056640697,-500.0,0.00039452,7]
[314191624,1708056640706,-500.0,0.00039452,7]
[314191625,1708056640716,-207.42685,0.00039452,14]
[314191626,1708056640725,-11765.0,0.00039452,4]
[314191627,1708056640734,-5000.0,0.0003946,14]
[314191628,1708056640744,-1000.0,0.0003946,14]
[314191629,1708056640753,-5000.0,0.0003948,7]
[314191630,1708056640763,-154.09,0.00039484,2]
[314191631,1708056640772,-150.0,0.0003949,2]
[314191632,1708056640781,-2718.367,0.0003949,2]
[314191633,1708056640791,-8164.0,0.0003949,2]
[314191634,1708056640801,-2289.0,0.0003949,2]
[314191635,1708056640811,-9455.998,0.0003949,2]
[314191636,1708056640820,-1037.0,0.0003949,2]
[314191637,1708056640830,-167.0,0.000395,7]
[314191638,1708056640839,-688.70978124,0.0003951,30]
[314191639,1708056640848,-767.34730536,0.0003951,2]
[314191640,1708056640858,-528.35207385,0.0003951,3]
[314191641,1708056640867,-1508.59599246,0.0003951,60]
[314191642,1708056640876,-19813.70341635,0.0003951,2]
[314191643,1708056640885,-155.27144867,0.0003951,120]
[314191644,1708056640895,-152.92544454,0.0003951,2]
[314191645,1708056640904,-647.12865825,0.0003951,30]
[314191646,1708056640913,-994.46295846,0.0003951,2]
[314191647,1708056640922,-2634.04514404,0.0003951,2]
[314191648,1708056640932,-155.29598778,0.0003951,2]
[314191649,1708056640941,-292.42153541,0.0003951,30]
[314191650,1708056640951,-154.09038755,0.0003951,31]
[314191651,1708056640960,-155.34090579,0.0003951,2]
[314191652,1708056640969,-674.31378256,0.0003951,2]
[314191653,1708056640980,-204.82545901,0.0003951,90]
[314191654,1708056640989,-496.73292102,0.0003951,15]
[314191655,1708056640998,-153.3577987,0.0003951,30]
[314191656,1708056641008,-319.48620703,0.0003951,120]
[314191657,1708056641018,-281.10631617,0.0003951,120]
[314191658,1708056641027,-9200.02602974,0.0003951,4]
[314191659,1708056641037,-8112.85376153,0.0003951,10]
[314191660,1708056641047,-588.75047351,0.0003951,120]
[314191661,1708056641058,-162.06747569,0.0003951,30]
[314191662,1708056641067,-20008.10601824,0.0003951,2]
[314191663,1708056641076,-155.44208196,0.0003951,2]
[314191664,1708056641086,-151.47013554,0.0003951,30]
[314191665,1708056641096,-177.60946344,0.0003951,30]
[314191666,1708056641109,-444.47986482,0.0003951,120]
[314191667,1708056641118,-243.42012289,0.0003951,30]
[314191668,1708056641128,-259.92686036,0.0003951,120]
[314191670,1708056641138,-155.71210622,0.0003951,30]
[314191672,1708056641147,-83136.67887586,0.0003951,120]
[314191673,1708056641157,-50765.14878279,0.0003951,2]
[314191675,1708056641167,-205.39995957,0.0003951,120]
[314191676,1708056641177,-422.89775243,0.0003951,2]
[314191677,1708056641187,-1801.19860144,0.0003951,120]
[314191678,1708056641196,-441.95851681,0.0003951,120]
[314191680,1708056641206,-525.94988839,0.0003951,2]
[314191682,1708056641215,-197.19793628,0.0003951,30]
[314191683,1708056641224,-16091.28776634,0.0003951,120]
[314191684,1708056641233,-500.0,0.00039547,2]
[314191685,1708056641242,-591.36146048,0.00039563,9]
[314191686,1708056641251,-55555.0,0.000396,3]
[314191687,1708056641260,-167.0,0.00039637,7]
[314191688,1708056641270,-500.0,0.00039666,2]
[314191689,1708056641280,-2835.0,0.00039669,2]
[314191690,1708056641289,-953.0,0.00039669,2]
[314191691,1708056641298,-842.0,0.00039669,2]
[314191692,1708056641308,-1231.0,0.00039669,2]
[314191693,1708056641317,-1254.0,0.00039669,2]
[314191694,1708056641327,-216.0,0.00039669,2]
[314191695,1708056641337,-314.732,0.00039669,2]
[314191696,1708056641347,-343.0,0.00039669,2]
[314191697,1708056641357,-150.0,0.00039669,2]
[314191698,1708056641366,-321.0,0.00039669,2]
[314191699,1708056641375,-454.0,0.00039669,2]
[314191700,1708056641384,-200.0,0.00039679,15]
[314191701,1708056641394,-11083.85862073,0.00039693,13]
[314191702,1708056641403,-341.78,0.000397,3]
[314191703,1708056641413,-341.78,0.000397,3]
[314191704,1708056641422,-341.78,0.000397,3]
[314191705,1708056641431,-341.78,0.000397,3]
[314191706,1708056641441,-341.78,0.000397,3]
[314191707,1708056641450,-341.78,0.000397,3]
[314191708,1708056641459,-341.78,0.000397,3]
[314191709,1708056641468,-341.78,0.000397,3]
[314191710,1708056641477,-341.78,0.000397,3]
[314191711,1708056641486,-341.78,0.000397,3]
[314191712,1708056641496,-341.78,0.000397,3]
[314191713,1708056641505,-341.78,0.000397,3]
[314191714,1708056641514,-341.78,0.000397,3]
[314191715,1708056641524,-341.78,0.000397,3]
[314191716,1708056641533,-341.78,0.000397,3]
[314191717,1708056641542,-341.78,0.000397,3]
[314191718,1708056641551,-341.78,0.000397,3]
[314191719,1708056641559,-341.78,0.000397,3]
[314191720,1708056641569,-341.78,0.000397,3]
[314191721,1708056641578,-341.78,0.000397,3]
[314191722,1708056641588,-1309.93,0.00039726,7]